[Event "WYCC 2018 O14"]
[Site "Halkidiki"]
[Date "2018.10.21"]
[Round "3"]
[White "Abelakiotis, Stavros"]
[Black "Vettese, Nicholas"]
[Result "1-0"]
[ECO "B51"]
[WhiteElo "1994"]
[BlackElo "2338"]
[Annotator "NA"]
[PlyCount "105"]
[EventDate "2018.10.20"]
[EventType "swiss"]
[EventCountry "GRE"]
[SourceTitle "playchess.com"]
[Source "ChessBase"]
[SourceQuality "1"]
[TimeControl "40/5400+30:1800+30"]

1. e4 {[%emt 0:00:00]} c5 {[%emt 0:00:00]} 2. Nf3 {[%emt 0:00:00]} d6 {[%emt 0:00:00]} 3. Bb5+ {[%emt 0:00:07]} Nd7 {[%emt 0:00:06]} 4. a4 {[%emt 0:00:14]} Ngf6 {[%emt 0:01:08]} 5. Nc3 {[%emt 0:00:08]} b6 {[%emt 0:02:21]} 6. d4 {[%emt 0:02:53]} a6 {[%emt 0:05:16]} 7. Be2 {[%emt 0:05:15]} Qc7 {[%emt 0:03:43]} 8. O-O {[%emt 0:01:46]} Bb7 {[%emt 0:07:01] [#]} 9. d5 $1 {[%emt 0:04:21]} g6 {[%emt 0:01:24]} 10. Bf4 {[%emt 0:02:57]} Bg7 {[%emt 0:02:44]} 11. Qd2 {[%emt 0:03:30]} O-O {[%emt 0:00:54]} 12. Bh6 {[%emt 0:09:36]} Bc8 $16 {[%emt 0:10:41]} 13. h3 {[%emt 0:04:17]} Rd8 {[%emt 0:07:47]} 14. Bxg7 {[%emt 0:01:16]} Kxg7 {[%emt 0:00:08]} 15. Rfe1 {[%emt 0:04:28]} Nf8 {[%emt 0:05:23]} 16. Bc4 {[%emt 0:05:19]} N6d7 {[%emt 0:06:33]} 17. Rad1 {[%emt 0:08:54]} Ne5 {[%emt 0:04:57]} 18. Nxe5 {[%emt 0:01:12]} dxe5 {[%emt 0:00:06]} 19. Qe2 {[%emt 0:04:08]} g5 {[%emt 0:02:16]} 20. Qh5 {[%emt 0:10:02]} f6 {[%emt 0:03:12]} 21. h4 {[%emt 0:13:09]} h6 {[%emt 0:00:38]} 22. d6 {[%emt 0:03:04]} exd6 {[%emt 0:00:10]} 23. Nd5 {[%emt 0:00:14]} Qa7 {[%emt 0:04:06]} 24. Nxf6 {[%emt 0:07:17]} Be6 {[%emt 0:00:40]} 25. Bxe6 {[%emt 0:02:54]} Nxe6 {[%emt 0:00:18]} 26. Ng4 {[%emt 0:02:31]} Rh8 {[%emt 0:00:45]} 27. Ne3 {[%emt 0:00:07]} Qf7 {[%emt 0:05:00]} 28. Nf5+ {[%emt 0:00:38]} Kf8 {[%emt 0:00:23]} 29. Qxf7+ {[%emt 0:01:06]} Kxf7 {[%emt 0:00:08]} 30. Rxd6 {[%emt 0:00:23]} Nd4 {[%emt 0:01:01]} 31. Rxb6 {[%emt 0:02:18]} Rhb8 {[%emt 0:01:15]} 32. Rxb8 {[%emt 0:01:23]} Rxb8 {[%emt 0:00:07]} 33. Nxd4 {[%emt 0:00:31]} exd4 {[%emt 0:00:12]} 34. hxg5 {[%emt 0:00:31]} Rxb2 {[%emt 0:00:12]} 35. gxh6 {[%emt 0:00:30]} Rxc2 {[%emt 0:00:22]} 36. e5 {[%emt 0:00:10]} Rb2 {[%emt 0:00:20]} 37. h7 {[%emt 0:00:49]} Kg7 {[%emt 0:00:10]} 38. e6 {[%emt 0:00:28]} Rb8 {[%emt 0:00:26]} 39. e7 {[%emt 0:00:32]} Re8 {[%emt 0:00:08]} 40. Rc1 {[%emt 0:00:00]} Rxe7 {[%emt 0:00:00]} 41. Rxc5 {[%emt 0:00:41]} Re1+ {[%emt 0:01:48]} 42. Kh2 {[%emt 0:00:04]} Kxh7 {[%emt 0:00:10]} 43. Rd5 {[%emt 0:01:19]} Rd1 {[%emt 0:00:20]} 44. Rd6 {[%emt 0:00:55]} a5 {[%emt 0:00:17]} 45. Rd5 {[%emt 0:00:11]} Rb1 {[%emt 0:00:40]} 46. Rxa5 {[%emt 0:00:50]} Rb4 {[%emt 0:00:23]} 47. Ra6 {[%emt 0:00:58]} Kg7 {[%emt 0:00:24]} 48. a5 {[%emt 0:04:00]} Kf7 {[%emt 0:00:17]} 49. Rh6 {[%emt 0:02:09]} Ke7 {[%emt 0:01:23]} 50. a6 {[%emt 0:00:21]} d3 {[%emt 0:00:47]} 51. a7 {[%emt 0:01:17]} Ra4 {[%emt 0:00:13]} 52. Rh3 {[%emt 0:00:16]} d2 {[%emt 0:00:36]} 53. Rd3 {[%emt 0:00:17]} 1-0

[Event "WYCC 2018 O14"]
[Site "Halkidiki"]
[Date "2018.10.21"]
[Round "3"]
[White "Chatzieleftheriou, Andreas"]
[Black "Tsay, Vincent"]
[Result "1/2-1/2"]
[ECO "C15"]
[WhiteElo "1984"]
[BlackElo "2310"]
[Annotator "ChessBase"]
[PlyCount "121"]
[EventDate "2018.10.20"]
[EventType "swiss"]
[EventCountry "GRE"]
[SourceTitle "playchess.com"]
[Source "ChessBase"]
[SourceQuality "1"]
[TimeControl "40/5400+30:1800+30"]

1. e4 {[%emt 0:00:00]} e6 {[%emt 0:00:00]} 2. d4 {[%emt 0:00:00]} d5 {[%emt 0:00:00]} 3. Nc3 {[%emt 0:00:00]} Bb4 {[%emt 0:00:00]} 4. exd5 {[%emt 0:00:05]} exd5 {[%emt 0:00:03]} 5. Bd3 {[%emt 0:00:33]} Nc6 {[%emt 0:00:50]} 6. a3 {[%emt 0:02:05]} Bxc3+ {[%emt 0:01:45]} 7. bxc3 {[%emt 0:00:03]} Nge7 {[%emt 0:00:13]} 8. Qf3 {[%emt 0:00:27]} O-O {[%emt 0:00:49]} 9. Nh3 {[%emt 0:01:39]} Bxh3 {[%emt 0:06:03]} 10. Qxh3 {[%emt 0:05:02]} Ng6 {[%emt 0:00:22]} 11. O-O {[%emt 0:00:28]} Re8 {[%emt 0:00:26]} 12. Qf3 {[%emt 0:06:26]} Na5 {[%emt 0:02:37]} 13. g3 {[%emt 0:01:46]} c6 {[%emt 0:06:12]} 14. h4 {[%emt 0:00:54]} Nf8 {[%emt 0:01:47]} 15. h5 {[%emt 0:09:06]} h6 {[%emt 0:04:22]} 16. Kg2 {[%emt 0:04:21]} Re6 {[%emt 0:02:04]} 17. Bf4 {[%emt 0:04:00]} Nc4 {[%emt 0:08:05]} 18. Qg4 {[%emt 0:25:43]} Nd6 {[%emt 0:04:49]} 19. Rae1 {[%emt 0:07:09]} Ne4 {[%emt 0:08:12]} 20. Be5 {[%emt 0:09:01]} Qg5 {[%emt 0:04:37]} 21. Qh3 {[%emt 0:04:21]} Qd8 {[%emt 0:16:21]} 22. f4 {[%emt 0:02:32]} f6 {[%emt 0:01:23]} 23. Rxe4 {[%emt 0:00:55]} dxe4 {[%emt 0:03:27]} 24. Bc4 {[%emt 0:00:01]} Kh8 {[%emt 0:11:08]} 25. Bxe6 {[%emt 0:00:07]} fxe5 {[%emt 0:00:11]} 26. fxe5 {[%emt 0:00:56]} Qg5 {[%emt 0:01:13]} 27. Bc8 {[%emt 0:00:51]} Qe7 {[%emt 0:02:18]} 28. Qh4 {[%emt 0:02:53]} Qe8 {[%emt 0:01:07]} 29. Bf5 {[%emt 0:00:45]} e3 {[%emt 0:01:01]} 30. Qe4 {[%emt 0:03:20]} Qxh5 {[%emt 0:00:44]} 31. Qxe3 {[%emt 0:00:05]} Qe8 {[%emt 0:02:09]} 32. c4 {[%emt 0:02:02]} Rd8 {[%emt 0:03:56]} 33. e6 {[%emt 0:01:23]} Qe7 {[%emt 0:00:36]} 34. Bh3 {[%emt 0:00:47]} Re8 {[%emt 0:00:37]} 35. d5 {[%emt 0:00:25]} b5 {[%emt 0:01:34]} 36. Qf4 {[%emt 0:01:19]} cxd5 {[%emt 0:02:18]} 37. cxd5 {[%emt 0:00:01]} Qc5 {[%emt 0:00:20]} 38. Qe4 {[%emt 0:02:43]} Nh7 {[%emt 0:01:25]} 39. Rd1 {[%emt 0:00:56]} Ng5 {[%emt 0:00:58]} 40. Qd4 {[%emt 0:00:00]} Qxc2+ {[%emt 0:00:00]} 41. Rd2 {[%emt 0:08:29]} Qc1 {[%emt 0:10:03]} 42. Bg4 {[%emt 0:12:40]} Ne4 {[%emt 0:07:06]} 43. Re2 {[%emt 0:00:59]} Nd6 {[%emt 0:05:53]} 44. e7 {[%emt 0:06:45]} Qg5 {[%emt 0:02:35]} 45. Qf4 {[%emt 0:00:28]} Qxd5+ {[%emt 0:05:47]} 46. Bf3 {[%emt 0:00:47]} Qc5 {[%emt 0:03:33]} 47. Qf8+ {[%emt 0:02:41]} Kh7 {[%emt 0:00:04]} 48. Rd2 {[%emt 0:01:32]} Qf5 {[%emt 0:01:27]} 49. Qxf5+ {[%emt 0:03:36]} Nxf5 {[%emt 0:00:04]} 50. Be4 {[%emt 0:00:58]} g6 {[%emt 0:00:01]} 51. Rd7 {[%emt 0:00:50]} a6 {[%emt 0:01:49]} 52. Bxf5 {[%emt 0:00:10]} gxf5 {[%emt 0:00:02]} 53. Ra7 {[%emt 0:00:11]} Kg7 {[%emt 0:00:19]} 54. Kf3 {[%emt 0:00:37]} Kf7 {[%emt 0:00:28]} 55. Rxa6 {[%emt 0:00:24]} Kxe7 {[%emt 0:00:14]} 56. Rxh6 {[%emt 0:00:11]} Ra8 {[%emt 0:00:04]} 57. Rb6 {[%emt 0:00:10]} Rxa3+ {[%emt 0:00:09]} 58. Kf4 {[%emt 0:00:06]} Rb3 {[%emt 0:00:49]} 59. Kxf5 {[%emt 0:00:17]} Rxg3 {[%emt 0:00:08]} 60. Rxb5 {[%emt 0:00:06]} Rh3 {[%emt 0:00:04]} 61. Rb7+ {[%emt 0:00:11]} 1/2-1/2

[Event "WYCC 2018 O14"]
[Site "Halkidiki"]
[Date "2018.10.21"]
[Round "3"]
[White "Gaal, Zsoka"]
[Black "Krastev, Alexander"]
[Result "0-1"]
[ECO "A37"]
[WhiteElo "1976"]
[BlackElo "2298"]
[Annotator "NA"]
[PlyCount "86"]
[EventDate "2018.10.20"]
[EventType "swiss"]
[EventCountry "GRE"]
[SourceTitle "playchess.com"]
[Source "ChessBase"]
[SourceQuality "1"]
[TimeControl "40/5400+30:1800+30"]

1. Nf3 {[%emt 0:00:00]} c5 {[%emt 0:00:00]} 2. c4 {[%emt 0:00:00]} g6 {[%emt 0:00:00]} 3. Nc3 {[%emt 0:00:22]} Bg7 {[%emt 0:00:00]} 4. g3 {[%emt 0:00:11]} Nc6 {[%emt 0:00:08]} 5. Bg2 {[%emt 0:00:14]} e6 {[%emt 0:00:07]} 6. O-O {[%emt 0:00:10]} Nge7 {[%emt 0:00:05]} 7. d4 {[%emt 0:00:46]} Nxd4 {[%emt 0:11:40]} 8. Nxd4 {[%emt 0:02:09] LiveBook: 30 Games} cxd4 {[%emt 0:00:11]} 9. Nb5 {[%emt 0:00:20]} Qb6 {[%emt 0:02:31]} 10. e3 {[%emt 0:09:04]} d5 {[%emt 0:17:35]} 11. Nxd4 {[%emt 0:17:25]} dxc4 {[%emt 0:01:17]} 12. Qa4+ {[%emt 0:01:26]} Bd7 {[%emt 0:00:16]} 13. Qxc4 $17 {[%emt 0:00:30]} O-O {[%emt 0:01:07]} 14. Qb3 {[%emt 0:09:21]} Bxd4 {[%emt 0:03:47]} 15. exd4 {[%emt 0:00:55]} Qxb3 {[%emt 0:00:06]} 16. axb3 {[%emt 0:00:16]} Bc6 {[%emt 0:00:15]} 17. Bg5 {[%emt 0:05:40]} f6 {[%emt 0:01:54]} 18. Bh6 {[%emt 0:00:22]} Rfd8 {[%emt 0:01:01]} 19. Bh3 {[%emt 0:01:10]} Kf7 {[%emt 0:01:30]} 20. Be3 {[%emt 0:06:39]} a6 {[%emt 0:01:48]} 21. Rfe1 {[%emt 0:01:08]} Bd5 {[%emt 0:00:43]} 22. Bg2 {[%emt 0:05:40]} Nc6 {[%emt 0:01:25]} 23. Rac1 {[%emt 0:05:09]} Rd7 {[%emt 0:02:57]} 24. Bxd5 {[%emt 0:08:16]} Rxd5 {[%emt 0:00:14]} 25. Rc5 {[%emt 0:01:26]} Rd7 {[%emt 0:02:43]} 26. Rec1 {[%emt 0:03:31]} Rad8 {[%emt 0:00:27]} 27. R5c4 {[%emt 0:03:13]} Ke7 {[%emt 0:03:41]} 28. d5 {[%emt 0:03:35]} Rxd5 {[%emt 0:02:09]} 29. Kg2 {[%emt 0:00:41]} e5 {[%emt 0:04:02]} 30. f4 {[%emt 0:02:35]} Ke6 {[%emt 0:00:56]} 31. fxe5 {[%emt 0:01:41]} Nxe5 {[%emt 0:02:50]} 32. Rc7 {[%emt 0:01:39]} R8d7 {[%emt 0:00:14]} 33. Rxd7 {[%emt 0:00:50]} Kxd7 {[%emt 0:00:30]} 34. Rc2 {[%emt 0:02:01]} Rd3 {[%emt 0:01:07]} 35. Rc3 {[%emt 0:01:00]} b5 {[%emt 0:01:30]} 36. b4 {[%emt 0:04:42]} Ke6 {[%emt 0:01:29]} 37. Bf4 {[%emt 0:02:10]} Rxc3 {[%emt 0:00:31]} 38. bxc3 {[%emt 0:00:01]} Kd5 {[%emt 0:00:09]} 39. Be3 {[%emt 0:00:55]} Nc6 {[%emt 0:00:44]} 40. Kf2 {[%emt 0:00:00]} Kc4 {[%emt 0:00:00]} 41. Bd2 {[%emt 0:02:33]} Kd3 {[%emt 0:00:15]} 42. Ke1 {[%emt 0:01:01]} Ne5 {[%emt 0:00:07]} 43. Kd1 {[%emt 0:00:27]} Nf3 {[%emt 0:00:05]} 0-1

[Event "WYCC 2018 O14"]
[Site "Halkidiki"]
[Date "2018.10.21"]
[Round "3"]
[White "Wernberg, Hugo"]
[Black "Trifan, Andrei Ioan"]
[Result "1/2-1/2"]
[ECO "C47"]
[WhiteElo "1956"]
[BlackElo "2290"]
[Annotator "NA"]
[PlyCount "44"]
[EventDate "2018.10.20"]
[EventType "swiss"]
[EventCountry "GRE"]
[SourceTitle "playchess.com"]
[Source "ChessBase"]
[SourceQuality "1"]
[TimeControl "40/5400+30:1800+30"]

1. e4 {[%emt 0:00:00]} e5 {[%emt 0:00:00]} 2. Nf3 {[%emt 0:00:00]} Nc6 {[%emt 0:00:00]} 3. Nc3 {[%emt 0:00:00]} Nf6 {[%emt 0:00:36]} 4. d4 {[%emt 0:00:00]} exd4 {[%emt 0:00:23]} 5. Nxd4 {[%emt 0:00:05]} Bb4 {[%emt 0:01:01]} 6. Nxc6 {[%emt 0:00:14]} bxc6 {[%emt 0:00:12]} 7. Bd3 {[%emt 0:00:12]} d5 {[%emt 0:01:27]} 8. exd5 {[%emt 0:00:09]} cxd5 {[%emt 0:01:42]} 9. O-O {[%emt 0:00:10]} O-O {[%emt 0:00:39]} 10. Bg5 {[%emt 0:00:11]} c6 {[%emt 0:01:19]} 11. Qf3 {[%emt 0:00:20]} h6 {[%emt 0:07:00] LiveBook: 223 Games} 12. Bxf6 {[%emt 0:02:00]} Qxf6 {[%emt 0:00:07]} 13. Qxf6 {[%emt 0:00:11]} gxf6 {[%emt 0:00:02]} 14. Ne2 {[%emt 0:01:28]} Rb8 {[%emt 0:11:34]} 15. Rab1 {[%emt 0:07:02]} Bd6 {[%emt 0:03:06]} 16. Nd4 {[%emt 0:05:02]} Rb6 {[%emt 0:02:20]} 17. Nf5 {[%emt 0:03:01]} Bxf5 {[%emt 0:02:20]} 18. Bxf5 {[%emt 0:00:03]} a5 {[%emt 0:00:54]} 19. Rfe1 {[%emt 0:04:38]} a4 {[%emt 0:02:02]} 20. b3 $14 {[%emt 0:04:51]} Rfb8 {[%emt 0:04:59]} 21. Re3 {[%emt 0:02:09]} Rb4 {[%emt 0:04:19]} 22. Rbe1 {[%emt 0:01:45]} Kg7 {[%emt 0:08:21]} 1/2-1/2

[Event "WYCC 2018 O14"]
[Site "Halkidiki"]
[Date "2018.10.21"]
[Round "3"]
[White "Bolognese, Leonardo"]
[Black "Gombocz, Ferenc Jr."]
[Result "0-1"]
[ECO "D15"]
[WhiteElo "1947"]
[BlackElo "2271"]
[Annotator "NA"]
[PlyCount "80"]
[EventDate "2018.10.20"]
[EventType "swiss"]
[EventCountry "GRE"]
[SourceTitle "playchess.com"]
[Source "ChessBase"]
[SourceQuality "1"]
[TimeControl "40/5400+30:1800+30"]

1. d4 {[%emt 0:00:00]} d5 {[%emt 0:00:00]} 2. c4 {[%emt 0:00:00]} c6 {[%emt 0:00:00]} 3. Nf3 {[%emt 0:00:07]} Nf6 {[%emt 0:00:00]} 4. Nc3 {[%emt 0:00:06]} a6 {[%emt 0:00:00]} 5. a4 {[%emt 0:01:23]} e6 {[%emt 0:05:08]} 6. Bg5 {[%emt 0:00:16]} Be7 {[%emt 0:01:05]} 7. e3 {[%emt 0:00:44]} O-O {[%emt 0:00:27]} 8. Be2 {[%emt 0:00:56]} h6 {[%emt 0:00:46]} 9. Bf4 {[%emt 0:05:42]} Nbd7 {[%emt 0:01:56]} 10. c5 {[%emt 0:09:09]} a5 {[%emt 0:06:05]} 11. h3 $11 {[%emt 0:01:24]} b6 {[%emt 0:01:17]} 12. cxb6 {[%emt 0:03:02]} Qxb6 {[%emt 0:02:52]} 13. Qc2 {[%emt 0:00:16]} Ba6 {[%emt 0:03:20]} 14. O-O {[%emt 0:01:03]} Bxe2 {[%emt 0:02:04]} 15. Qxe2 {[%emt 0:01:07]} Rfc8 {[%emt 0:03:16]} 16. Rfc1 {[%emt 0:01:05]} Bd8 {[%emt 0:09:49]} 17. Ne5 {[%emt 0:09:17]} Nxe5 {[%emt 0:01:49]} 18. dxe5 {[%emt 0:05:40]} Nd7 {[%emt 0:00:18]} 19. Qg4 {[%emt 0:00:35]} Kh7 {[%emt 0:11:07]} 20. Qh5 {[%emt 0:02:02]} Nc5 {[%emt 0:01:53]} 21. Qxf7 {[%emt 0:14:22]} Rc7 {[%emt 0:09:13]} 22. Qh5 {[%emt 0:02:38]} Nb3 {[%emt 0:00:50]} 23. Qe2 {[%emt 0:20:26]} Nxa1 {[%emt 0:02:22]} 24. Rxa1 {[%emt 0:00:17]} Rb8 {[%emt 0:00:23]} 25. Qd3+ {[%emt 0:01:36]} g6 {[%emt 0:02:44]} 26. Rb1 {[%emt 0:05:45]} Qb4 {[%emt 0:02:20]} 27. b3 {[%emt 0:05:59]} Qa3 {[%emt 0:18:11]} 28. Qc2 {[%emt 0:03:18]} Rcb7 {[%emt 0:00:32]} 29. Ne2 {[%emt 0:03:28]} c5 {[%emt 0:01:00]} 30. Bg3 {[%emt 0:00:11]} Bg5 {[%emt 0:05:57]} 31. h4 {[%emt 0:00:47]} Rxb3 {[%emt 0:00:53]} 32. Rxb3 {[%emt 0:00:11]} Qxb3 {[%emt 0:00:04]} 33. Qxc5 {[%emt 0:00:21]} Rb7 {[%emt 0:03:35]} 34. Nd4 {[%emt 0:01:35]} Qd1+ {[%emt 0:00:51]} 35. Kh2 {[%emt 0:00:10]} Be7 {[%emt 0:00:19]} 36. Qc6 {[%emt 0:02:14]} Rb1 {[%emt 0:00:32]} 37. Kh3 {[%emt 0:00:43]} Qh1+ {[%emt 0:00:42]} 38. Bh2 {[%emt 0:00:04]} Rg1 {[%emt 0:00:19]} 39. g3 {[%emt 0:00:14]} Qg2+ {[%emt 0:00:09]} 40. Kg4 {[%emt 0:00:00]} h5+ {[%emt 0:00:00]} 0-1

[Event "WYCC 2018 O14"]
[Site "Halkidiki"]
[Date "2018.10.21"]
[Round "3"]
[White "Unneland, Mathias"]
[Black "Turcan, Richard"]
[Result "0-1"]
[ECO "A62"]
[WhiteElo "1884"]
[BlackElo "2218"]
[Annotator "NA"]
[PlyCount "94"]
[EventDate "2018.10.20"]
[EventType "swiss"]
[EventCountry "GRE"]
[SourceTitle "playchess.com"]
[Source "ChessBase"]
[SourceQuality "1"]
[TimeControl "40/5400+30:1800+30"]

1. d4 {[%emt 0:00:00]} Nf6 {[%emt 0:00:00]} 2. c4 {[%emt 0:00:00]} c5 {[%emt 0:00:00]} 3. d5 {[%emt 0:00:00]} e6 {[%emt 0:00:02]} 4. Nc3 {[%emt 0:00:00]} exd5 {[%emt 0:00:04]} 5. cxd5 {[%emt 0:00:04]} d6 {[%emt 0:00:04]} 6. Nf3 {[%emt 0:00:10]} g6 {[%emt 0:00:02]} 7. g3 {[%emt 0:00:09]} Bg7 {[%emt 0:00:06]} 8. Bg2 {[%emt 0:00:05]} O-O {[%emt 0:00:10]} 9. O-O {[%emt 0:00:05]} Re8 {[%emt 0:00:13]} 10. Re1 {[%emt 0:00:49]} a6 {[%emt 0:07:08]} 11. a4 {[%emt 0:00:57]} Nbd7 {[%emt 0:04:59]} 12. Bf4 {[%emt 0:01:45]} Ng4 {[%emt 0:10:17]} 13. Qc2 {[%emt 0:06:30]} Nge5 {[%emt 0:02:40]} 14. Nd2 {[%emt 0:03:33]} Rb8 {[%emt 0:14:29]} 15. a5 {[%emt 0:01:33]} b5 {[%emt 0:00:47]} 16. axb6 {[%emt 0:00:10]} Qxb6 {[%emt 0:01:07]} 17. Reb1 {[%emt 0:01:08]} h6 $11 {[%emt 0:07:58]} 18. e4 {[%emt 0:02:10]} g5 {[%emt 0:03:07]} 19. Be3 {[%emt 0:01:30]} Ng4 {[%emt 0:01:15]} 20. Nc4 {[%emt 0:01:59]} Nxe3 {[%emt 0:00:27]} 21. Nxe3 {[%emt 0:00:27]} Ne5 {[%emt 0:02:10]} 22. Bf1 {[%emt 0:02:33]} Nf3+ {[%emt 0:08:19]} 23. Kg2 {[%emt 0:01:49]} Nd4 {[%emt 0:00:05]} 24. Qa4 {[%emt 0:01:06]} Re7 {[%emt 0:10:34]} 25. Ra3 {[%emt 0:07:20]} Qd8 {[%emt 0:07:22]} 26. b4 {[%emt 0:04:38]} Bd7 {[%emt 0:03:17]} 27. Qa5 {[%emt 0:03:14]} Qxa5 {[%emt 0:01:18]} 28. Rxa5 {[%emt 0:01:33]} cxb4 {[%emt 0:02:19]} 29. Rxa6 {[%emt 0:01:17]} Ree8 {[%emt 0:01:13]} 30. Ncd1 {[%emt 0:03:18]} Bf8 {[%emt 0:05:24]} 31. f3 {[%emt 0:01:21]} Rec8 {[%emt 0:01:20]} 32. Ra7 {[%emt 0:01:58]} Bb5 {[%emt 0:01:04]} 33. Bxb5 {[%emt 0:00:31]} Nxb5 {[%emt 0:01:00]} 34. Ra4 {[%emt 0:00:44]} Nc3 {[%emt 0:00:27]} 35. Nxc3 {[%emt 0:07:15]} bxc3 {[%emt 0:00:02]} 36. Rc1 {[%emt 0:02:34]} Rb2+ {[%emt 0:02:45]} 37. Kh3 {[%emt 0:00:55]} Rf2 {[%emt 0:01:41]} 38. Ra3 {[%emt 0:01:47]} c2 {[%emt 0:01:49]} 39. Nf5 {[%emt 0:02:29]} h5 {[%emt 0:01:49]} 40. Ra2 {[%emt 0:00:00]} Kh7 {[%emt 0:00:00]} 41. Ra6 {[%emt 0:11:11]} Rxf3 {[%emt 0:12:19]} 42. Nxd6 {[%emt 0:01:14]} Bxd6 {[%emt 0:01:27]} 43. Rxd6 {[%emt 0:00:13]} Rf2 {[%emt 0:06:35]} 44. Rc6 {[%emt 0:00:48]} Rxc6 {[%emt 0:00:22]} 45. dxc6 {[%emt 0:00:13]} g4+ {[%emt 0:00:14]} 46. Kh4 {[%emt 0:00:21]} Kg6 {[%emt 0:00:01]} 47. h3 Rh2 {[%emt 0:00:17]} 0-1

[Event "WYCC 2018 O14"]
[Site "Halkidiki"]
[Date "2018.10.21"]
[Round "3"]
[White "Tombolis, Christopher"]
[Black "Lopez Varela, Pablo"]
[Result "0-1"]
[ECO "E94"]
[WhiteElo "1882"]
[BlackElo "2172"]
[Annotator "NA"]
[PlyCount "98"]
[EventDate "2018.10.20"]
[EventType "swiss"]
[EventCountry "GRE"]
[SourceTitle "playchess.com"]
[Source "ChessBase"]
[SourceQuality "1"]
[TimeControl "40/5400+30:1800+30"]

1. d4 {[%emt 0:00:00]} Nf6 {[%emt 0:00:00]} 2. c4 {[%emt 0:00:00]} d6 {[%emt 0:00:00]} 3. Nc3 {[%emt 0:00:00]} Nbd7 {[%emt 0:00:00]} 4. e4 {[%emt 0:00:00]} e5 {[%emt 0:00:00]} 5. Nf3 {[%emt 0:00:00]} g6 {[%emt 0:00:35]} 6. Be2 {[%emt 0:00:00]} Bg7 {[%emt 0:00:05]} 7. O-O {[%emt 0:00:08]} O-O {[%emt 0:00:03]} 8. dxe5 {[%emt 0:00:05]} dxe5 {[%emt 0:00:11]} 9. h3 {[%emt 0:03:12]} c6 {[%emt 0:00:29]} 10. Be3 {[%emt 0:01:01]} Qe7 {[%emt 0:01:02]} 11. Ne1 {[%emt 0:18:40]} Rd8 {[%emt 0:08:01]} 12. Qc2 {[%emt 0:00:46]} Nf8 {[%emt 0:04:13]} 13. Nd3 {[%emt 0:02:52]} N6d7 {[%emt 0:07:48]} 14. Bg4 {[%emt 0:06:13]} h5 {[%emt 0:10:15]} 15. Bxd7 {[%emt 0:06:52]} Bxd7 {[%emt 0:00:08]} 16. f4 $17 {[%emt 0:04:51]} exf4 {[%emt 0:05:10]} 17. Nxf4 {[%emt 0:07:42]} Ne6 {[%emt 0:11:40]} 18. Qf2 {[%emt 0:12:53]} Nxf4 {[%emt 0:05:42]} 19. Qxf4 {[%emt 0:00:54]} Be6 {[%emt 0:00:15]} 20. e5 {[%emt 0:11:23]} Bf5 {[%emt 0:06:43]} 21. g4 {[%emt 0:00:01]} Bxe5 {[%emt 0:03:39]} 22. Qf3 {[%emt 0:03:21]} hxg4 {[%emt 0:00:40]} 23. hxg4 {[%emt 0:02:05]} Qh4 {[%emt 0:03:51]} 24. Rf2 {[%emt 0:06:27]} Qxg4+ {[%emt 0:01:56]} 25. Qxg4 {[%emt 0:00:03]} Bxg4 {[%emt 0:00:07]} 26. Ne4 {[%emt 0:00:47]} Bf5 {[%emt 0:01:15]} 27. Nc5 {[%emt 0:04:03]} b6 {[%emt 0:01:52]} 28. Na6 {[%emt 0:00:03]} Rd3 {[%emt 0:01:15]} 29. Re1 {[%emt 0:00:33]} Bg3 {[%emt 0:00:57]} 30. Nb4 {[%emt 0:01:14]} Bxf2+ {[%emt 0:00:39]} 31. Kxf2 {[%emt 0:00:12]} Rd6 {[%emt 0:02:17]} 32. Bf4 {[%emt 0:01:13]} Re6 {[%emt 0:00:34]} 33. Rh1 {[%emt 0:00:08]} a5 {[%emt 0:01:03]} 34. Nd5 {[%emt 0:00:39]} cxd5 {[%emt 0:00:26]} 35. cxd5 {[%emt 0:00:04]} Re4 {[%emt 0:00:48]} 36. Bg5 {[%emt 0:00:07]} Kg7 {[%emt 0:00:30]} 37. Rd1 {[%emt 0:00:27]} f6 {[%emt 0:00:28]} 38. Be3 {[%emt 0:00:01]} Rae8 {[%emt 0:00:36]} 39. Bxb6 {[%emt 0:00:02]} Re2+ {[%emt 0:00:11]} 40. Kg3 {[%emt 0:00:00]} Rxb2 {[%emt 0:00:00]} 41. Ba7 {[%emt 0:00:44]} Rxa2 {[%emt 0:00:46]} 42. d6 {[%emt 0:00:08]} Ra3+ {[%emt 0:00:28]} 43. Kf2 {[%emt 0:00:11]} Rd3 {[%emt 0:00:30]} 44. Rxd3 {[%emt 0:00:27]} Bxd3 {[%emt 0:00:05]} 45. Bb6 {[%emt 0:00:05]} Bb5 {[%emt 0:00:10]} 46. Bxa5 {[%emt 0:00:04]} Bd7 {[%emt 0:00:11]} 47. Kg3 {[%emt 0:00:08]} Re5 {[%emt 0:00:14]} 48. Bc7 {[%emt 0:00:05]} Rf5 {[%emt 0:00:07]} 49. Kh4 {[%emt 0:00:04]} Rf3 {[%emt 0:00:48]} 0-1

[Event "WYCC 2018 O14"]
[Site "Halkidiki"]
[Date "2018.10.21"]
[Round "3"]
[White "Morgenstern, Tobias"]
[Black "Galkin, Gleb"]
[Result "0-1"]
[ECO "C77"]
[WhiteElo "1876"]
[BlackElo "2134"]
[Annotator "NA"]
[PlyCount "62"]
[EventDate "2018.10.20"]
[EventType "swiss"]
[EventCountry "GRE"]
[SourceTitle "playchess.com"]
[Source "ChessBase"]
[SourceQuality "1"]
[TimeControl "40/5400+30:1800+30"]

1. e4 {[%emt 0:00:00]} e5 {[%emt 0:00:00]} 2. Nf3 {[%emt 0:00:00]} Nc6 {[%emt 0:00:00]} 3. Bb5 {[%emt 0:00:00]} a6 {[%emt 0:00:00]} 4. Ba4 {[%emt 0:00:00]} Nf6 {[%emt 0:00:00]} 5. d3 {[%emt 0:00:00]} d6 {[%emt 0:00:00]} 6. c3 {[%emt 0:00:34]} g6 {[%emt 0:00:19]} 7. O-O {[%emt 0:00:48]} Bg7 8. Nbd2 {[%emt 0:00:30]} O-O 9. Re1 h6 {[%emt 0:02:02]} 10. Nf1 {[%emt 0:01:00]} b5 {[%emt 0:01:45]} 11. Bc2 d5 {[%emt 0:03:03]} 12. Qe2 {[%emt 0:04:38]} Be6 {[%emt 0:01:53]} 13. Ng3 {[%emt 0:04:45]} Re8 {[%emt 0:05:13]} 14. h3 {[%emt 0:03:46]} Nd7 {[%emt 0:07:45]} 15. Nh2 {[%emt 0:06:13]} d4 16. f4 exf4 {[%emt 0:06:51]} 17. Bxf4 {[%emt 0:12:41]} dxc3 {[%emt 0:00:08]} 18. b3 {[%emt 0:05:17]} Nd4 {[%emt 0:02:50]} 19. Qf2 {[%emt 0:03:25]} Qh4 {[%emt 0:04:07]} 20. Bxc7 {[%emt 0:06:11]} Rac8 {[%emt 0:02:37]} 21. Bd6 {[%emt 0:03:17]} Rc6 {[%emt 0:00:26]} 22. e5 {[%emt 0:04:10]} Nxc2 {[%emt 0:01:45]} 23. Nf3 {[%emt 0:00:19]} Qf4 {[%emt 0:02:28]} 24. Ne2 {[%emt 0:18:25]} Qf5 {[%emt 0:06:31]} 25. g4 {[%emt 0:02:48]} Qxd3 {[%emt 0:06:15]} 26. Nf4 {[%emt 0:00:42]} Nxe1 {[%emt 0:01:47]} 27. Rxe1 {[%emt 0:00:25]} Rxd6 {[%emt 0:02:05]} 28. Nxd3 {[%emt 0:02:39]} Rxd3 {[%emt 0:00:07]} 29. Kg2 {[%emt 0:05:06]} Bd5 {[%emt 0:00:43]} 30. Re3 {[%emt 0:00:45]} Rxe3 {[%emt 0:00:12]} 31. Qxe3 {[%emt 0:00:15]} Nxe5 {[%emt 0:00:04]} 0-1